[Event "*** Titled Tuesday Blitz"]
[Site "Chess.com"]
[Date "2020.01.07"]
[Round "9"]
[White "BeanScreen"]
[Black "Lifeek"]
[Result "1-0"]
[WhiteElo "2394"]
[BlackElo "2252"]
[TimeControl "180+2"]
[EndTime "15:07:28 PST"]
[Termination "BeanScreen won by resignation"]

1. e4 {[%clk 0:03:01.6]} 1... c6 {[%clk 0:03:01]} 2. d4 {[%clk 0:03:02.8]} 2...
d5 {[%clk 0:03:02.9]} 3. exd5 {[%clk 0:03:04.7]} 3... cxd5 {[%clk 0:03:04.7]} 4.
Bd3 {[%clk 0:03:06.5]} 4... Nc6 {[%clk 0:03:04.3]} 5. c3 {[%clk 0:03:08.2]} 5...
g6 {[%clk 0:03:05.6]} 6. Bf4 {[%clk 0:03:09.4]} 6... Nf6 {[%clk 0:03:03.4]} 7.
Nd2 {[%clk 0:03:10.7]} 7... Bf5 {[%clk 0:03:03.7]} 8. Bxf5 {[%clk 0:03:12.3]}
8... gxf5 {[%clk 0:03:05.6]} 9. Ngf3 {[%clk 0:03:14.2]} 9... e6 {[%clk
0:03:04.1]} 10. O-O {[%clk 0:03:15.7]} 10... Bd6 {[%clk 0:03:03.6]} 11. Bg5
{[%clk 0:03:03.4]} 11... Be7 {[%clk 0:03:03.9]} 12. Bxf6 {[%clk 0:03:01.4]}
12... Bxf6 {[%clk 0:03:05.8]} 13. Re1 {[%clk 0:03:00.7]} 13... O-O {[%clk
0:03:04.5]} 14. Ne5 {[%clk 0:02:59.3]} 14... Qc7 {[%clk 0:02:38]} 15. f4 {[%clk
0:02:59.4]} 15... Kh8 {[%clk 0:02:28]} 16. Qh5 {[%clk 0:03:00.2]} 16... Bxe5
{[%clk 0:02:15.8]} 17. fxe5 {[%clk 0:02:50.9]} 17... Rg8 {[%clk 0:02:16.6]} 18.
Nf3 {[%clk 0:02:49.6]} 18... Qe7 {[%clk 0:02:13.2]} 19. h4 {[%clk 0:02:44.3]}
19... Rg4 {[%clk 0:02:06]} 20. Ng5 {[%clk 0:02:44.2]} 20... Rxg5 {[%clk
0:01:58.7]} 21. Qxg5 {[%clk 0:02:42]} 21... Qxg5 {[%clk 0:01:59.3]} 22. hxg5
{[%clk 0:02:43.9]} 22... Rg8 {[%clk 0:02:00.8]} 23. Kf2 {[%clk 0:02:34.3]} 23...
Rxg5 {[%clk 0:02:01.4]} 24. Re3 {[%clk 0:02:29.2]} 24... Kg7 {[%clk 0:01:51.8]}
25. Rg3 {[%clk 0:02:29.8]} 25... h6 {[%clk 0:01:53.1]} 26. Rxg5+ {[%clk
0:02:24.7]} 26... hxg5 {[%clk 0:01:55]} 27. g4 {[%clk 0:02:26.6]} 27... Kg6
{[%clk 0:01:55.3]} 28. Kf3 {[%clk 0:02:25.4]} 28... f6 {[%clk 0:01:55.1]} 29.
exf6 {[%clk 0:02:24.5]} 29... Kxf6 {[%clk 0:01:57]} 30. Rh1 {[%clk 0:02:21]}
30... Kg6 {[%clk 0:01:34.9]} 31. Rh8 {[%clk 0:02:15.5]} 31... e5 {[%clk
0:01:35.9]} 32. Rg8+ {[%clk 0:02:03.7]} 32... Kf6 {[%clk 0:01:07.2]} 33. Rf8+
{[%clk 0:02:04.1]} 33... Kg6 {[%clk 0:01:08.5]} 34. gxf5+ {[%clk 0:01:40.3]}
34... Kg7 {[%clk 0:01:09.1]} 35. Re8 {[%clk 0:01:37.1]} 35... exd4 {[%clk
0:01:07.9]} 36. cxd4 {[%clk 0:01:06.8]} 36... Nxd4+ {[%clk 0:01:05.2]} 37. Kg4
{[%clk 0:01:08.1]} 37... Nc6 {[%clk 0:01:04.1]} 38. Kxg5 {[%clk 0:01:08.1]}
38... d4 {[%clk 0:01:05.5]} 39. Rc8 {[%clk 0:01:01.5]} 39... d3 {[%clk
0:00:57.9]} 40. Rc7+ {[%clk 0:01:02.5]} 40... Kf8 {[%clk 0:00:56.8]} 41. Rd7
{[%clk 0:01:03.9]} 41... Ne5 {[%clk 0:00:55.2]} 42. Rd5 {[%clk 0:01:05.2]} 42...
d2 {[%clk 0:00:55.2]} 43. Kf6 {[%clk 0:00:49.6]} 43... Ng4+ {[%clk 0:00:46.9]}
44. Ke6 {[%clk 0:00:50.9]} 1-0

[Event "*** Titled Tuesday Blitz"]
[Site "Chess.com"]
[Date "2020.01.07"]
[Round "9"]
[White "StephenDedalus83"]
[Black "nubair1198"]
[Result "0-1"]
[WhiteElo "2734"]
[BlackElo "2930"]
[TimeControl "180+2"]
[EndTime "15:07:36 PST"]
[Termination "nubair1198 won by checkmate"]

1. g3 {[%clk 0:03:01.9]} 1... d5 {[%clk 0:02:58.1]} 2. Bg2 {[%clk 0:03:02.6]}
2... Nf6 {[%clk 0:02:59.6]} 3. d3 {[%clk 0:03:03.6]} 3... g6 {[%clk 0:02:57.5]}
4. Nd2 {[%clk 0:03:03.9]} 4... Bg7 {[%clk 0:02:59]} 5. e4 {[%clk 0:03:04.9]}
5... e5 {[%clk 0:02:59.4]} 6. Ngf3 {[%clk 0:03:02.4]} 6... Nc6 {[%clk
0:03:00.4]} 7. O-O {[%clk 0:03:02.5]} 7... O-O {[%clk 0:03:01.5]} 8. b3 {[%clk
0:03:03]} 8... Re8 {[%clk 0:03:00.9]} 9. Bb2 {[%clk 0:03:03.7]} 9... d4 {[%clk
0:02:49.1]} 10. a4 {[%clk 0:03:03.4]} 10... Be6 {[%clk 0:02:35.8]} 11. Nc4
{[%clk 0:03:03.5]} 11... Nd7 {[%clk 0:02:35.1]} 12. Nfd2 {[%clk 0:02:56.7]}
12... a6 {[%clk 0:02:27.9]} 13. f4 {[%clk 0:02:42.1]} 13... f6 {[%clk
0:02:20.7]} 14. a5 {[%clk 0:02:28.9]} 14... Bf8 {[%clk 0:02:10.4]} 15. f5 {[%clk
0:02:26]} 15... Bf7 {[%clk 0:02:10.5]} 16. h4 {[%clk 0:02:18.1]} 16... Bb4
{[%clk 0:02:11.8]} 17. g4 {[%clk 0:02:09.3]} 17... b5 {[%clk 0:02:07.6]} 18.
axb6 {[%clk 0:02:09.2]} 18... cxb6 {[%clk 0:02:08.3]} 19. Nf3 {[%clk 0:02:10.6]}
19... b5 {[%clk 0:01:56.7]} 20. Ncd2 {[%clk 0:02:10.8]} 20... Bc3 {[%clk
0:01:58.4]} 21. Rb1 {[%clk 0:01:59.7]} 21... g5 {[%clk 0:01:50.5]} 22. hxg5
{[%clk 0:01:57]} 22... fxg5 {[%clk 0:01:52.4]} 23. Rf2 {[%clk 0:01:51.7]} 23...
Bxb2 {[%clk 0:01:45.9]} 24. Rxb2 {[%clk 0:01:51.9]} 24... a5 {[%clk 0:01:47.8]}
25. Nb1 {[%clk 0:01:41]} 25... h6 {[%clk 0:01:48]} 26. Bf1 {[%clk 0:01:37.8]}
26... Nf6 {[%clk 0:01:48.1]} 27. Rg2 {[%clk 0:01:16.1]} 27... Qd6 {[%clk
0:01:49.2]} 28. Qc1 {[%clk 0:01:13.8]} 28... Kf8 {[%clk 0:01:45.9]} 29. Be2
{[%clk 0:00:47]} 29... a4 {[%clk 0:01:46.1]} 30. bxa4 {[%clk 0:00:46.8]} 30...
bxa4 {[%clk 0:01:48]} 31. Rb6 {[%clk 0:00:47.1]} 31... Reb8 {[%clk 0:01:40.3]}
32. Rxb8+ {[%clk 0:00:42.6]} 32... Rxb8 {[%clk 0:01:42.2]} 33. Na3 {[%clk
0:00:41.7]} 33... Qb4 {[%clk 0:01:33.8]} 34. Nxg5 {[%clk 0:00:37.2]} 34... hxg5
{[%clk 0:01:33.7]} 35. Qxg5 {[%clk 0:00:38.7]} 35... Ng8 {[%clk 0:01:30.7]} 36.
Nc4 {[%clk 0:00:30.9]} 36... Qe1+ {[%clk 0:01:17]} 37. Kh2 {[%clk 0:00:30.2]}
37... Bxc4 {[%clk 0:01:18.6]} 38. dxc4 {[%clk 0:00:30.4]} 38... a3 {[%clk
0:01:19.2]} 39. f6 {[%clk 0:00:31.2]} 39... Rb7 {[%clk 0:01:20.5]} 40. Qf5
{[%clk 0:00:30.7]} 40... Qh4+ {[%clk 0:01:09]} 41. Kg1 {[%clk 0:00:31.3]} 41...
Rb1+ {[%clk 0:01:10.3]} 42. Bf1 {[%clk 0:00:31.1]} 42... a2 {[%clk 0:01:07.8]}
43. Qc8+ {[%clk 0:00:29.5]} 43... Kf7 {[%clk 0:01:09.1]} 44. Qd7+ {[%clk
0:00:20.9]} 44... Nge7 {[%clk 0:01:09.7]} 45. fxe7 {[%clk 0:00:20.9]} 45...
Rxf1+ {[%clk 0:00:58.5]} 46. Kxf1 {[%clk 0:00:21.3]} 46... a1=Q+ {[%clk
0:01:00.4]} 47. Ke2 {[%clk 0:00:22.3]} 47... Qhe1+ {[%clk 0:01:02.3]} 48. Kd3
{[%clk 0:00:23]} 48... Qe3# {[%clk 0:01:04.2]} 0-1

[Event "*** Titled Tuesday Blitz"]
[Site "Chess.com"]
[Date "2020.01.07"]
[Round "9"]
[White "chesstatour"]
[Black "boasovietica"]
[Result "0-1"]
[WhiteElo "1993"]
[BlackElo "2447"]
[TimeControl "180+2"]
[EndTime "15:07:36 PST"]
[Termination "boasovietica won by checkmate"]

1. c4 {[%clk 0:03:01.9]} 1... e6 {[%clk 0:03:00.5]} 2. Nc3 {[%clk 0:03:03.8]}
2... f5 {[%clk 0:02:58.8]} 3. g3 {[%clk 0:03:02.6]} 3... Nf6 {[%clk 0:03:00.1]}
4. Bg2 {[%clk 0:03:03.7]} 4... Be7 {[%clk 0:02:53.7]} 5. d4 {[%clk 0:03:04.4]}
5... d5 {[%clk 0:02:50.8]} 6. Nf3 {[%clk 0:02:57.1]} 6... c6 {[%clk 0:02:51.1]}
7. O-O {[%clk 0:02:57.5]} 7... O-O {[%clk 0:02:52.5]} 8. b3 {[%clk 0:02:55.7]}
8... Qe8 {[%clk 0:02:52.3]} 9. Bb2 {[%clk 0:02:57.2]} 9... Qh5 {[%clk 0:02:53]}
10. Ne5 {[%clk 0:02:57.9]} 10... Nbd7 {[%clk 0:02:50.9]} 11. e3 {[%clk 0:02:59]}
11... Qh6 {[%clk 0:02:48.2]} 12. Nxd7 {[%clk 0:02:50.6]} 12... Bxd7 {[%clk
0:02:48]} 13. Qe2 {[%clk 0:02:11.1]} 13... Be8 {[%clk 0:02:41.8]} 14. f3 {[%clk
0:02:09.3]} 14... g5 {[%clk 0:02:40.7]} 15. e4 {[%clk 0:02:00.4]} 15... dxe4
{[%clk 0:02:21]} 16. fxe4 {[%clk 0:02:02.3]} 16... f4 {[%clk 0:02:20.5]} 17.
gxf4 {[%clk 0:01:34.6]} 17... gxf4 {[%clk 0:02:18]} 18. Bf3 {[%clk 0:01:35.5]}
18... Kh8 {[%clk 0:02:13.6]} 19. Kh1 {[%clk 0:01:36]} 19... Bh5 {[%clk
0:02:09.6]} 20. d5 {[%clk 0:01:23.1]} 20... e5 {[%clk 0:02:09.1]} 21. Nd1 {[%clk
0:01:07.4]} 21... Bxf3+ {[%clk 0:01:52.8]} 22. Qxf3 {[%clk 0:01:04.4]} 22... Nh5
{[%clk 0:01:53.5]} 23. Bxe5+ {[%clk 0:00:46.7]} 23... Bf6 {[%clk 0:01:52.8]} 24.
Bxf6+ {[%clk 0:00:42]} 24... Rxf6 {[%clk 0:01:54.7]} 25. e5 {[%clk 0:00:23.8]}
25... Rg6 {[%clk 0:01:49.1]} 26. Rg1 {[%clk 0:00:17.4]} 26... Rag8 {[%clk
0:01:46.1]} 27. Nc3 {[%clk 0:00:16.4]} 27... Ng3+ {[%clk 0:01:44.5]} 28. Kg2
{[%clk 0:00:10.9]} 28... Nf1+ {[%clk 0:00:36.2]} 29. Kf2 {[%clk 0:00:02.9]}
29... Qxh2+ {[%clk 0:00:32.4]} 30. Kxf1 {[%clk 0:00:02.2]} 30... Rxg1# {[%clk
0:00:04.7]} 0-1

[Event "*** Titled Tuesday Blitz"]
[Site "Chess.com"]
[Date "2020.01.07"]
[Round "9"]
[White "Playgood28"]
[Black "PNEPaul"]
[Result "1-0"]
[WhiteElo "2239"]
[BlackElo "1824"]
[TimeControl "180+2"]
[EndTime "15:07:49 PST"]
[Termination "Playgood28 won by resignation"]

1. d4 {[%clk 0:03:01.9]} 1... a6 {[%clk 0:03:00.1]} 2. c4 {[%clk 0:03:01.6]}
2... d6 {[%clk 0:03:01.2]} 3. e3 {[%clk 0:03:01.7]} 3... g6 {[%clk 0:03:02.3]}
4. Nf3 {[%clk 0:03:02.4]} 4... Nd7 {[%clk 0:03:03.2]} 5. Nc3 {[%clk 0:03:03]}
5... Bg7 {[%clk 0:03:04.2]} 6. b3 {[%clk 0:03:02.6]} 6... e6 {[%clk 0:03:05.1]}
7. Bb2 {[%clk 0:03:03.4]} 7... Ne7 {[%clk 0:03:06]} 8. Bd3 {[%clk 0:03:03.8]}
8... O-O {[%clk 0:03:05.6]} 9. O-O {[%clk 0:03:02.7]} 9... b6 {[%clk 0:03:06.4]}
10. b4 {[%clk 0:03:00.9]} 10... Bb7 {[%clk 0:03:07.1]} 11. Rc1 {[%clk
0:03:00.5]} 11... Rb8 {[%clk 0:03:07.7]} 12. a3 {[%clk 0:02:59.3]} 12... c5
{[%clk 0:03:08]} 13. dxc5 {[%clk 0:02:50.9]} 13... bxc5 {[%clk 0:03:07.2]} 14.
b5 {[%clk 0:02:50.9]} 14... d5 {[%clk 0:02:58.3]} 15. Qe2 {[%clk 0:02:46.9]}
15... d4 {[%clk 0:02:51.8]} 16. exd4 {[%clk 0:02:42.4]} 16... cxd4 {[%clk
0:02:49.1]} 17. Ne4 {[%clk 0:02:40]} 17... e5 {[%clk 0:02:37.4]} 18. Nd6 {[%clk
0:02:10.5]} 18... Bxf3 {[%clk 0:02:23]} 19. gxf3 {[%clk 0:02:09.1]} 19... Nc5
{[%clk 0:02:17.1]} 20. Ne4 {[%clk 0:01:55.5]} 20... Nxd3 {[%clk 0:02:11.8]} 21.
Qxd3 {[%clk 0:01:53.4]} 21... f5 {[%clk 0:02:10.7]} 22. Nc5 {[%clk 0:01:46.1]}
22... axb5 {[%clk 0:01:46]} 23. Ne6 {[%clk 0:01:46]} 23... Qb6 {[%clk
0:01:39.8]} 24. Nxf8 {[%clk 0:01:42.5]} 24... Rxf8 {[%clk 0:01:28.3]} 25. cxb5
{[%clk 0:01:40.6]} 25... Nd5 {[%clk 0:01:24.7]} 26. Qc4 {[%clk 0:01:39.1]} 26...
Qe6 {[%clk 0:01:23.9]} 27. Qc6 {[%clk 0:01:38]} 27... Qf7 {[%clk 0:01:20.7]} 28.
a4 {[%clk 0:01:21.7]} 28... Nf4 {[%clk 0:01:21.1]} 29. Qc4 {[%clk 0:01:21.9]}
29... Nd5 {[%clk 0:01:07.1]} 30. Ba3 {[%clk 0:01:10.2]} 30... Rd8 {[%clk
0:01:01.3]} 31. b6 {[%clk 0:01:08.8]} 31... Qb7 {[%clk 0:00:51.2]} 32. a5 {[%clk
0:01:06.7]} 32... h6 {[%clk 0:00:47]} 33. Qc6 {[%clk 0:00:57.2]} 33... Qf7
{[%clk 0:00:41.8]} 34. b7 {[%clk 0:00:52.4]} 34... Nf4 {[%clk 0:00:41.1]} 35.
Qc4 {[%clk 0:00:51.5]} 35... Nd5 {[%clk 0:00:40.3]} 36. a6 {[%clk 0:00:50.4]}
36... Qf6 {[%clk 0:00:38.6]} 37. Qxd5+ {[%clk 0:00:44.1]} 37... Rxd5 {[%clk
0:00:37.4]} 38. b8=Q+ {[%clk 0:00:43.1]} 38... Kh7 {[%clk 0:00:37.2]} 39. Qb7
{[%clk 0:00:41.2]} 39... Qg5+ {[%clk 0:00:36.1]} 40. Kh1 {[%clk 0:00:41.3]}
40... Rd8 {[%clk 0:00:26.4]} 41. Rc7 {[%clk 0:00:38.1]} 41... Rg8 {[%clk
0:00:25.4]} 42. Bf8 {[%clk 0:00:36.1]} 42... Qf6 {[%clk 0:00:17.9]} 43. Bxg7
{[%clk 0:00:36.4]} 43... Rxg7 {[%clk 0:00:18.8]} 44. Rxg7+ {[%clk 0:00:36.5]}
44... Qxg7 {[%clk 0:00:19.8]} 45. Rb1 {[%clk 0:00:37.3]} 1-0

[Event "*** Titled Tuesday Blitz"]
[Site "Chess.com"]
[Date "2020.01.07"]
[Round "9"]
[White "liczner"]
[Black "yy2324"]
[Result "1-0"]
[WhiteElo "2790"]
[BlackElo "2581"]
[TimeControl "180+2"]
[EndTime "15:07:50 PST"]
[Termination "liczner won by resignation"]

1. e4 {[%clk 0:03:01.9]} 1... c5 {[%clk 0:03:00.7]} 2. Nf3 {[%clk 0:03:03]} 2...
e6 {[%clk 0:03:01.8]} 3. d4 {[%clk 0:03:03.6]} 3... cxd4 {[%clk 0:03:03]} 4.
Nxd4 {[%clk 0:03:05.5]} 4... Nc6 {[%clk 0:03:03.7]} 5. Nc3 {[%clk 0:03:06.3]}
5... Qc7 {[%clk 0:03:04.9]} 6. Be2 {[%clk 0:03:06.8]} 6... a6 {[%clk 0:03:05.2]}
7. O-O {[%clk 0:03:07.2]} 7... Nf6 {[%clk 0:03:06.6]} 8. Be3 {[%clk 0:03:08]}
8... Bb4 {[%clk 0:03:07.6]} 9. Na4 {[%clk 0:03:08.3]} 9... Be7 {[%clk
0:03:07.9]} 10. Nxc6 {[%clk 0:03:07.9]} 10... bxc6 {[%clk 0:03:09]} 11. Nb6
{[%clk 0:03:09.5]} 11... Rb8 {[%clk 0:03:09.4]} 12. Nxc8 {[%clk 0:03:11]} 12...
Qxc8 {[%clk 0:03:11.3]} 13. Bd4 {[%clk 0:03:03.7]} 13... c5 {[%clk 0:03:11.4]}
14. Be5 {[%clk 0:03:00.8]} 14... Rb6 {[%clk 0:03:13]} 15. Qd3 {[%clk 0:02:57.1]}
15... d6 {[%clk 0:03:12.3]} 16. Bc3 {[%clk 0:02:57.5]} 16... O-O {[%clk
0:03:13.6]} 17. b3 {[%clk 0:02:29.5]} 17... d5 {[%clk 0:03:11]} 18. exd5 {[%clk
0:02:30.4]} 18... Nxd5 {[%clk 0:03:10.2]} 19. Bb2 {[%clk 0:02:23.2]} 19... Nf4
{[%clk 0:03:08.6]} 20. Qe4 {[%clk 0:02:20]} 20... Nxe2+ {[%clk 0:03:08.9]} 21.
Qxe2 {[%clk 0:02:21.9]} 21... c4 {[%clk 0:03:01.1]} 22. Rfd1 {[%clk 0:02:06]}
22... c3 {[%clk 0:02:46.9]} 23. Bc1 {[%clk 0:02:06.1]} 23... Rd8 {[%clk
0:02:45.5]} 24. Bf4 {[%clk 0:01:52.8]} 24... Rb5 {[%clk 0:02:34.9]} 25. Rxd8+
{[%clk 0:01:11.1]} 25... Qxd8 {[%clk 0:02:32.2]} 26. g3 {[%clk 0:01:11.1]} 26...
h6 {[%clk 0:02:02.3]} 27. Re1 {[%clk 0:00:45.3]} 27... Bf6 {[%clk 0:01:59.3]}
28. a4 {[%clk 0:00:44.5]} 28... Rb6 {[%clk 0:01:42.1]} 29. Rd1 {[%clk
0:00:44.5]} 29... Qe7 {[%clk 0:01:38.6]} 30. Qd3 {[%clk 0:00:40.9]} 30... Qb7
{[%clk 0:01:28.8]} 31. Qe3 {[%clk 0:00:30.4]} 31... Rb4 {[%clk 0:01:10.5]} 32.
Bd6 {[%clk 0:00:18.5]} 32... Re4 {[%clk 0:01:09.5]} 33. Qd3 {[%clk 0:00:19.7]}
33... Rd4 {[%clk 0:01:09.2]} 34. Qe2 {[%clk 0:00:18.5]} 34... Qd5 {[%clk
0:00:48]} 35. Rxd4 {[%clk 0:00:19.1]} 35... Qxd4 {[%clk 0:00:49]} 36. Bf4 {[%clk
0:00:20.3]} 36... a5 {[%clk 0:00:49.2]} 37. Be3 {[%clk 0:00:18.7]} 37... Qe4
{[%clk 0:00:48.4]} 38. h4 {[%clk 0:00:16.4]} 38... Qd4 {[%clk 0:00:24]} 39. Bxd4
{[%clk 0:00:15.7]} 1-0

[Event "*** Titled Tuesday Blitz"]
[Site "Chess.com"]
[Date "2020.01.07"]
[Round "9"]
[White "Mikhail_Golubev"]
[Black "Induwara_IM"]
[Result "1-0"]
[WhiteElo "2584"]
[BlackElo "2355"]
[TimeControl "180+2"]
[EndTime "15:07:51 PST"]
[Termination "Mikhail_Golubev won by checkmate"]

1. e4 {[%clk 0:02:21.3]} 1... e6 {[%clk 0:02:57.3]} 2. d4 {[%clk 0:02:21.3]}
2... d5 {[%clk 0:02:58.3]} 3. Nc3 {[%clk 0:02:22.1]} 3... Bb4 {[%clk 0:02:57.8]}
4. e5 {[%clk 0:02:22.6]} 4... c5 {[%clk 0:02:58.3]} 5. a3 {[%clk 0:02:23.7]}
5... Ba5 {[%clk 0:02:55.3]} 6. b4 {[%clk 0:02:24.4]} 6... cxd4 {[%clk 0:02:53]}
7. Nb5 {[%clk 0:02:24.9]} 7... Bc7 {[%clk 0:02:50.7]} 8. f4 {[%clk 0:02:25]}
8... Ne7 {[%clk 0:02:48]} 9. Nf3 {[%clk 0:02:23.9]} 9... Bd7 {[%clk 0:02:47]}
10. Nxc7+ {[%clk 0:02:18.7]} 10... Qxc7 {[%clk 0:02:47.9]} 11. Bd3 {[%clk
0:02:18.6]} 11... a6 {[%clk 0:02:48.1]} 12. O-O {[%clk 0:02:11.6]} 12... Bb5
{[%clk 0:02:48.9]} 13. Bxb5+ {[%clk 0:02:12.2]} 13... axb5 {[%clk 0:02:50.8]}
14. Nxd4 {[%clk 0:02:11.8]} 14... Qc4 {[%clk 0:02:42.7]} 15. Qd3 {[%clk
0:02:02.4]} 15... O-O {[%clk 0:02:07]} 16. Nxb5 {[%clk 0:01:58.4]} 16... Nbc6
{[%clk 0:02:07.4]} 17. Be3 {[%clk 0:01:47.6]} 17... Nf5 {[%clk 0:02:03.7]} 18.
Qxc4 {[%clk 0:01:48.1]} 18... dxc4 {[%clk 0:02:03.6]} 19. Bc5 {[%clk 0:01:42.8]}
19... Rfd8 {[%clk 0:02:02.6]} 20. Rfd1 {[%clk 0:01:36.4]} 20... h5 {[%clk
0:02:02.4]} 21. Kf2 {[%clk 0:01:33.3]} 21... g5 {[%clk 0:01:53.2]} 22. fxg5
{[%clk 0:01:18.1]} 22... Nxe5 {[%clk 0:01:53.2]} 23. h3 {[%clk 0:01:11.6]} 23...
Ng6 {[%clk 0:01:34.6]} 24. Nd4 {[%clk 0:00:54.1]} 24... Nxd4 {[%clk 0:01:33.4]}
25. Rxd4 {[%clk 0:00:47.1]} 25... Rxd4 {[%clk 0:01:33.5]} 26. Bxd4 {[%clk
0:00:47.9]} 26... Nf4 {[%clk 0:01:34.5]} 27. Kf3 {[%clk 0:00:42.2]} 27... Nd5
{[%clk 0:01:33.5]} 28. g4 {[%clk 0:00:32.9]} 28... hxg4+ {[%clk 0:01:33.8]} 29.
Kxg4 {[%clk 0:00:33.8]} 29... b5 {[%clk 0:01:27.5]} 30. h4 {[%clk 0:00:31.5]}
30... Ne7 {[%clk 0:01:28.6]} 31. h5 {[%clk 0:00:26]} 31... Nf5 {[%clk
0:01:29.7]} 32. Bf6 {[%clk 0:00:26.1]} 32... Ne3+ {[%clk 0:01:28.4]} 33. Kf4
{[%clk 0:00:20.9]} 33... Nxc2 {[%clk 0:01:29.5]} 34. Rd1 {[%clk 0:00:21.5]}
34... Nxa3 {[%clk 0:01:29.3]} 35. g6 {[%clk 0:00:10.8]} 35... Nc2 {[%clk
0:01:28.6]} 36. Rd7 {[%clk 0:00:10.1]} 36... fxg6 {[%clk 0:01:29]} 37. hxg6
{[%clk 0:00:10.7]} 37... Nxb4 {[%clk 0:01:28.3]} 38. Rg7+ {[%clk 0:00:08.8]}
38... Kf8 {[%clk 0:01:29.1]} 39. Kg5 {[%clk 0:00:08.9]} 39... Nd5 {[%clk
0:01:29.3]} 40. Rf7+ {[%clk 0:00:08.3]} 40... Kg8 {[%clk 0:01:27.6]} 41. Rg7+
{[%clk 0:00:09]} 41... Kf8 {[%clk 0:01:27.9]} 42. Rh7 {[%clk 0:00:08.3]} 42...
Ne7 {[%clk 0:01:24.6]} 43. Rxe7 {[%clk 0:00:06.3]} 43... Ra1 {[%clk 0:01:24.3]}
44. Rf7+ {[%clk 0:00:06.4]} 44... Kg8 {[%clk 0:01:24.5]} 45. Rg7+ {[%clk
0:00:06.9]} 45... Kf8 {[%clk 0:01:25.2]} 46. Rh7 {[%clk 0:00:07.6]} 46... Rg1+
{[%clk 0:01:25]} 47. Kh5 {[%clk 0:00:07]} 47... Rh1+ {[%clk 0:01:25.7]} 48. Bh4
{[%clk 0:00:07.1]} 48... c3 {[%clk 0:01:25.8]} 49. Rc7 {[%clk 0:00:07.2]} 49...
b4 {[%clk 0:01:26.6]} 50. Kg5 {[%clk 0:00:06.1]} 50... e5 {[%clk 0:01:25.9]} 51.
Kf6 {[%clk 0:00:06.6]} 51... Rf1+ {[%clk 0:01:26.3]} 52. Ke6 {[%clk 0:00:06.9]}
52... e4 {[%clk 0:01:26.9]} 53. Bg5 {[%clk 0:00:07.6]} 53... Rh1 {[%clk
0:01:22.3]} 54. Bf6 {[%clk 0:00:08.3]} 54... c2 {[%clk 0:01:19.8]} 55. Rc8#
{[%clk 0:00:09.1]} 1-0

[Event "*** Titled Tuesday Blitz"]
[Site "Chess.com"]
[Date "2020.01.07"]
[Round "9"]
[White "ural58"]
[Black "letantha"]
[Result "1-0"]
[WhiteElo "2315"]
[BlackElo "1854"]
[TimeControl "180+2"]
[EndTime "15:07:53 PST"]
[Termination "ural58 won on time"]

1. e4 {[%clk 0:02:57.3]} 1... c5 {[%clk 0:03:00.4]} 2. b3 {[%clk 0:02:57.8]}
2... Nc6 {[%clk 0:03:00.2]} 3. Bb2 {[%clk 0:02:52.4]} 3... e5 {[%clk 0:03:01.2]}
4. f4 {[%clk 0:02:45]} 4... d6 {[%clk 0:03:01.2]} 5. Qf3 {[%clk 0:02:41.3]} 5...
Be7 {[%clk 0:02:59.5]} 6. Bb5 {[%clk 0:02:13.8]} 6... Nf6 {[%clk 0:02:50.9]} 7.
Bxc6+ {[%clk 0:01:45.8]} 7... bxc6 {[%clk 0:02:52.8]} 8. fxe5 {[%clk 0:01:46.5]}
8... dxe5 {[%clk 0:02:52.2]} 9. Bxe5 {[%clk 0:01:32.4]} 9... O-O {[%clk
0:02:50.1]} 10. Nc3 {[%clk 0:01:31.8]} 10... c4 {[%clk 0:02:35.9]} 11. bxc4
{[%clk 0:00:45.1]} 11... Be6 {[%clk 0:02:32.7]} 12. d3 {[%clk 0:00:44.8]} 12...
Ng4 {[%clk 0:02:30.9]} 13. Bf4 {[%clk 0:00:40.2]} 13... Qd4 {[%clk 0:02:11.4]}
14. Nge2 {[%clk 0:00:33.3]} 14... Qb6 {[%clk 0:01:48.1]} 15. h3 {[%clk
0:00:28.3]} 15... Nf6 {[%clk 0:01:43.8]} 16. Be3 {[%clk 0:00:25.6]} 16... Qa5
{[%clk 0:01:43.1]} 17. O-O {[%clk 0:00:21.6]} 17... Bb4 {[%clk 0:01:29.9]} 18.
Bd2 {[%clk 0:00:20.5]} 18... Qc7 {[%clk 0:01:20.6]} 19. a3 {[%clk 0:00:20.6]}
19... Bd6 {[%clk 0:01:16.8]} 20. Kh1 {[%clk 0:00:20.3]} 20... Rab8 {[%clk
0:00:53.6]} 21. Be3 {[%clk 0:00:14.3]} 21... Rb2 {[%clk 0:00:53.4]} 22. c5
{[%clk 0:00:14.5]} 22... Be7 {[%clk 0:00:52.3]} 23. Rfc1 {[%clk 0:00:15.3]}
23... Rfb8 {[%clk 0:00:48.5]} 24. d4 {[%clk 0:00:15.9]} 24... Bc4 {[%clk
0:00:47.7]} 25. Bf4 {[%clk 0:00:16.5]} 25... Qa5 {[%clk 0:00:47]} 26. Bxb8
{[%clk 0:00:17.1]} 26... Rxb8 {[%clk 0:00:48.9]} 27. Qe3 {[%clk 0:00:16.7]}
27... h6 {[%clk 0:00:44.7]} 28. Rab1 {[%clk 0:00:17.8]} 28... Re8 {[%clk
0:00:45.1]} 29. Nf4 {[%clk 0:00:17.1]} 29... Qc7 {[%clk 0:00:37.2]} 30. e5
{[%clk 0:00:16]} 30... Nh7 {[%clk 0:00:27]} 31. Ne4 {[%clk 0:00:16.8]} 31... Bg5
{[%clk 0:00:26.8]} 32. Nxg5 {[%clk 0:00:17.5]} 32... Nxg5 {[%clk 0:00:27.5]} 33.
Re1 {[%clk 0:00:18]} 33... Qa5 {[%clk 0:00:22.4]} 34. Rb4 {[%clk 0:00:17.5]}
34... Bb5 {[%clk 0:00:20.3]} 35. c4 {[%clk 0:00:17.6]} 35... Ba6 {[%clk
0:00:21.1]} 36. Reb1 {[%clk 0:00:17.1]} 36... Rd8 {[%clk 0:00:13.7]} 37. Rb8
{[%clk 0:00:19]} 37... Bxc4 {[%clk 0:00:13.2]} 38. Rxd8+ {[%clk 0:00:18.1]}
38... Qxd8 {[%clk 0:00:15.1]} 39. Qc3 {[%clk 0:00:17.1]} 39... Bd5 {[%clk
0:00:12.5]} 40. Qb4 {[%clk 0:00:17.2]} 1-0